bitfinex/quotes_SOLUSD_20240912
["timestamp","ask_amount","ask_price","bid_price","bid_amount"]
[1726156825130,11.86814988,133.84,133.76,23.49106522]
[1726156825928,11.86818866,133.84,133.76,23.49106522]
[1726156826118,10.0,133.84,133.77,20.12549]
[1726156826318,6.8489663,133.85,133.77,20.12549]
[1726156826319,6.8489663,133.85,133.78,23.49106522]
[1726156826530,6.8489663,133.85,133.79,20.0]
[1726156827018,6.8489663,133.85,133.8,23.49106522]
[1726156827221,0.2374663,133.85,133.81,20.12549]
[1726156827522,0.2374663,133.85,133.83,20.0]
[1726156828540,0.2374663,133.85,133.8,20.0]
[1726156829921,10.0,133.84,133.77,23.49106522]
[1726156830472,2.10527784,133.85,133.75,39.13376522]
[1726156830473,10.0,133.82,133.75,39.13376522]
[1726156831948,10.0,133.82,133.76,20.0]
[1726156834936,22.1319,133.83,133.76,20.0]
[1726156835124,22.1319,133.83,133.75,15.76819]
[1726156835125,22.1319,133.83,133.78,20.0]
[1726156836032,32.1319,133.83,133.78,20.0]
[1726156836539,10.2374663,133.85,133.79,23.49106522]
[1726156836732,10.2374663,133.85,133.8,20.0]
[1726156837347,0.2374663,133.85,133.8,20.0]
[1726156837730,10.2374663,133.85,133.8,20.0]
[1726156841251,0.2374663,133.85,133.8,20.0]
[1726156841962,10.2374663,133.85,133.8,20.0]
[1726156842258,10.2374663,133.85,133.8,15.04160388]
[1726156845055,0.2374663,133.85,133.84,15.04160388]
[1726156845950,0.2374663,133.85,133.84,35.04160388]
[1726156847353,0.2374663,133.85,133.79,0.12549]
[1726156847561,0.2374663,133.85,133.83,20.0]
[1726156848240,0.2374663,133.85,133.81,23.49139427]
[1726156848455,0.2374663,133.85,133.82,20.0]
[1726156849584,6.63e-05,133.85,133.84,20.0]
[1726156853541,26.1914,133.89,133.84,20.0]
[1726156853754,0.1073656,133.85,133.84,20.0]
[1726156855757,10.1073656,133.85,133.79,0.91]
[1726156855965,10.1073656,133.85,133.8,20.0]
[1726156856748,0.1073656,133.85,133.82,20.0]
[1726156856952,10.1073656,133.85,133.82,20.0]
[1726156857162,0.1073656,133.85,133.82,20.0]
[1726156857846,0.1073656,133.85,133.83,23.49139427]
[1726156858077,25.8380022,133.89,133.84,20.25098]
[1726156858367,25.8380022,133.89,133.86,23.49139427]
[1726156858581,9.6466022,133.87,133.85,20.0]
[1726156859553,9.6466022,133.87,133.83,20.0]
[1726156859761,25.8380022,133.89,133.83,20.0]
[1726156860048,25.8380022,133.89,133.84,23.49139427]
[1726156860252,25.8380022,133.89,133.85,20.0]
[1726156861264,9.6466022,133.87,133.85,20.0]
[1726156861460,16.1914,133.89,133.86,23.49139427]
[1726156861676,16.3096022,133.9,133.87,20.0]
[1726156862275,6.663,133.9,133.87,20.0]
[1726156862585,25.7522022,133.92,133.89,20.0]
[1726156863558,9.6466022,133.92,133.89,20.0]
[1726156864587,9.6466022,133.92,133.9,23.49139427]
[1726156864767,6.2669,133.94,133.9,43.49139427]
[1726156865168,6.2669,133.94,133.9,43.74237427]
[1726156865372,26.1517388,133.95,133.9,43.74237427]
[1726156865373,9.8927388,133.95,133.91,20.0]
[1726156865581,9.8927388,133.95,133.92,23.49139427]
[1726156865910,9.8927388,133.95,133.93,20.0]
[1726156866366,0.2461366,133.95,133.93,20.0]
[1726156866678,16.2780022,133.97,133.93,20.0]
[1726156868191,16.2780022,133.97,133.87,20.0]
[1726156868192,9.6466022,133.95,133.87,20.0]
[1726156868390,9.6466022,133.93,133.9,15.01452826]
[1726156869381,9.6466022,133.91,133.86,16.0792]
[1726156869584,9.6466022,133.91,133.82,7.28833494]
[1726156869585,9.6466022,133.91,133.88,15.01452826]
[1726156870089,9.6466022,133.91,133.86,23.4751282]
[1726156870871,9.6466022,133.89,133.85,20.0]
[1726156871269,9.6466022,133.89,133.84,23.4751282]
[1726156871465,9.6466022,133.89,133.82,26.65119871]
[1726156871466,9.6466022,133.87,133.82,0.1414304]
[1726156871676,9.6466022,133.87,133.82,24.5265586]
[1726156871889,1.8673582,133.89,133.82,24.5265586]
[1726156871890,9.6466022,133.85,133.82,1.0514304]
[1726156872077,9.6466022,133.85,133.82,0.1414304]
[1726156872688,9.6466022,133.85,133.82,23.6165586]
[1726156873990,9.6466022,133.88,133.82,23.6165586]
[1726156874205,16.2432022,133.9,133.84,23.4751282]
[1726156874497,16.2432022,133.9,133.85,20.0]
[1726156874870,9.6466022,133.88,133.85,20.0]
[1726156875869,16.2432022,133.9,133.85,20.0]
[1726156876370,16.2432022,133.9,133.86,23.4751282]
[1726156876769,16.2432022,133.9,133.87,20.0]
[1726156878412,15.5856,133.92,133.89,20.0]
[1726156880491,6.1198,133.94,133.9,23.4751282]
[1726156880792,6.1198,133.94,133.91,20.0]
[1726156881906,25.1466022,133.95,133.91,20.0]
[1726156882273,9.6466022,133.95,133.92,23.6006182]
[1726156882593,9.6466022,133.95,133.93,20.0]
[1726156884405,16.4298702,133.98,133.94,23.4751282]
[1726156884575,16.4298702,133.98,133.95,20.0]
[1726156886279,9.8983702,133.98,133.97,20.0]
[1726156886989,9.8983702,133.98,133.94,23.4751282]
[1726156887393,9.8983702,133.98,133.95,20.0]
[1726156887602,0.251768,133.98,133.96,23.4751282]
[1726156887984,0.251768,133.98,133.97,20.0]
[1726156891701,9.8983702,133.98,133.97,20.0]
[1726156892202,0.251768,133.98,133.97,20.0]
[1726156894900,9.6466022,134.04,134.0,20.0]
[1726156895198,9.6466022,134.02,134.0,20.0]
[1726156895410,9.6466022,134.02,133.99,20.0]
[1726156895698,9.6466022,134.02,133.99,20.12549]
[1726156896092,9.6466022,134.02,133.99,20.0]
[1726156897092,9.6466022,134.02,133.95,16.3499]
[1726156897302,9.6466022,134.01,133.95,39.8250282]
[1726156897887,9.6466022,134.01,133.97,23.4751282]
[1726156898429,9.6466022,134.03,133.99,23.4751282]
[1726156898904,9.6466022,134.01,133.96,67.2520122]
[1726156899110,9.6466022,133.99,133.96,43.4751282]
[1726156899400,9.6466022,133.99,133.95,23.4751282]
[1726156899699,9.6466022,134.01,133.96,20.0]
[1726156899906,9.6466022,134.01,133.98,20.0]
[1726156900476,9.6466022,133.99,133.96,20.0]
[1726156900895,7.0455984,134.05,133.96,20.0]
[1726156900896,9.6466022,134.01,133.97,0.12549]
[1726156901395,9.6466022,134.01,133.98,20.0]
[1726156902594,9.6466022,134.03,134.0,20.0]
[1726156905087,9.6466022,134.02,133.97,23.4751282]
[1726156905393,9.6466022,134.0,133.97,23.4751282]
[1726156905591,9.6466022,134.0,133.95,23.4751282]
[1726156905804,7.0455984,134.05,133.95,23.4751282]
[1726156905805,9.6466022,133.98,133.95,23.4751282]
[1726156906006,9.6466022,133.98,133.93,38.6574282]
[1726156906412,15.3685,134.01,133.95,23.4751282]
[1726156906413,9.6466022,134.0,133.95,23.4751282]
[1726156906918,9.6466022,134.0,133.96,20.0]
[1726156910015,9.6466022,133.98,133.94,20.0]
[1726156910491,9.6466022,133.96,133.91,3.00575848]
[1726156910697,9.6466022,133.96,133.9,38.8943282]
[1726156911419,9.6466022,133.96,133.92,23.4751282]
[1726156911794,8.52495203,134.0,133.95,20.0]
[1726156911795,16.3056022,134.0,133.95,20.0]
[1726156911993,16.3056022,134.0,133.91,23.4751282]
[1726156911994,9.6466022,133.98,133.97,20.0]
[1726156912515,9.6466022,133.98,133.95,20.0]
[1726156912706,16.3056022,134.0,133.95,20.0]
[1726156914302,16.3056022,134.0,133.96,0.12549]
[1726156915818,9.6466022,133.98,133.95,20.0]
[1726156916896,6.659,134.0,133.93,20.0]
[1726156916897,9.6466022,133.96,133.93,20.0]
[1726156917119,9.6466022,133.96,133.92,23.4751282]
[1726156917324,9.6466022,133.96,133.9,41.88980796]
[1726156917630,9.6466022,133.96,133.9,26.47060796]
[1726156918528,9.6466022,133.96,133.9,23.4751282]
[1726156918707,9.6466022,133.96,133.91,20.12549]
[1726156920502,9.6466022,133.96,133.92,23.4751282]
[1726156920713,9.6466022,133.96,133.93,20.0]
[1726156920893,9.6466022,133.98,133.95,20.0]
[1726156921599,9.6466022,133.96,133.95,20.0]
[1726156921802,9.6466022,133.96,133.89,3.01194301]
[1726156921803,9.6466022,133.96,133.9,23.4751282]
[1726156922129,9.6466022,133.96,133.93,20.0]
[1726156922826,9.6466022,133.98,133.93,20.0]
[1726156923203,9.6466022,133.96,133.93,20.0]
[1726156924923,9.6466022,133.94,133.88,43.4751282]
[1726156926620,9.6466022,133.94,133.9,20.0]
[1726156927424,6.4607,133.95,133.91,23.776884]
[1726156927621,9.6466022,133.97,133.94,43.776884]
[1726156927832,9.6466022,133.97,133.95,0.12549]
[1726156928215,15.8543022,133.99,133.96,20.0]
[1726156928403,15.8543022,133.99,133.97,43.4751282]
[1726156928404,0.145329,133.98,133.97,43.4751282]
[1726156928800,0.145329,133.98,133.97,43.6006182]
[1726156929120,0.2521098,134.02,133.98,20.0]
[1726156929317,0.2521098,134.02,134.01,20.0]
[1726156929737,0.2521098,134.02,134.01,20.12549]
[1726156930610,9.6466022,134.05,134.01,20.12549]
[1726156930611,9.6466022,134.05,134.01,20.25098]
[1726156930827,9.6466022,134.05,134.03,23.4751282]
[1726156931031,9.6466022,134.05,134.04,20.0]
[1726156933632,16.0293022,134.07,134.04,20.0]
[1726156933930,16.0293022,134.07,134.05,43.4751282]
[1726156934140,9.6466022,134.07,134.05,43.4751282]
[1726156934709,9.6466022,134.07,134.05,43.6006182]
[1726156934915,6.6898098,134.1,134.05,43.6006182]
[1726156934916,9.6466022,134.09,134.05,43.6006182]
[1726156935150,9.6466022,134.09,134.06,20.0]
[1726156935453,0.2521098,134.1,134.09,20.0]
[1726156936911,9.6466022,134.09,134.06,23.4751282]
[1726156937116,9.6466022,134.09,134.07,20.0]
[1726156942426,0.2521098,134.1,134.08,23.4751282]
[1726156942821,9.6466022,134.09,134.08,43.4751282]
[1726156943431,0.2521098,134.1,134.09,20.0]
[1726156945141,9.6466022,134.08,134.07,20.0]
[1726156946247,9.898712,134.1,134.07,20.0]
[1726156946450,9.898712,134.1,134.08,23.4751282]
[1726156946738,9.898712,134.1,134.09,20.0]
[1726156948354,0.2521098,134.1,134.09,20.0]
[1726156948556,0.2521098,134.1,134.09,20.12549]
[1726156951439,9.6466022,134.12,134.09,20.12549]
[1726156951775,9.6466022,134.12,134.11,43.4751282]
[1726156952441,9.6466022,134.12,134.1,20.0]
[1726156953161,9.6466022,134.12,134.09,23.4751282]
[1726156953333,9.6466022,134.12,134.1,20.0]
[1726156954337,9.6466022,134.12,134.11,23.4751282]
[1726156954541,9.6466022,134.12,134.11,43.6006182]
[1726156955467,9.7749784,134.14,134.12,20.0]
[1726156958751,9.6466022,134.11,134.09,23.4751282]
[1726156959945,9.6466022,134.11,134.1,20.0]
[1726156960569,9.6466022,134.13,134.1,20.0]
[1726156960948,9.6466022,134.11,134.1,20.0]
[1726156962462,9.6466022,134.13,134.1,20.0]
[1726156962775,9.6466022,134.13,134.12,20.0]
[1726156966168,9.6466022,134.13,134.09,0.12549]
[1726156966169,9.6466022,134.14,134.13,20.0]
[1726156966552,9.6466022,134.14,134.11,23.4751282]
[1726156966763,7.89607592,134.17,134.09,0.12549]
[1726156966764,9.6466022,134.11,134.1,20.0]
[1726156967063,9.6466022,134.11,134.08,20.0]
[1726156967459,9.6466022,134.11,134.09,23.4751282]
[1726156967663,9.6466022,134.09,134.08,20.0]
[1726156967875,9.6466022,134.11,134.08,20.0]
[1726156971776,8.6466022,134.11,134.08,20.0]
[1726156974265,8.6466022,134.11,134.1,20.0]
[1726156974492,8.6466022,134.13,134.1,20.0]
[1726156974680,8.6466022,134.13,134.1,20.12549]
[1726156975064,8.6466022,134.13,134.12,20.0]
[1726156977968,6.0323,134.17,134.12,20.0]
[1726156977969,8.6466022,134.15,134.12,20.0]
[1726156978384,8.6466022,134.13,134.12,20.0]
[1726156979281,8.6466022,134.15,134.12,20.0]
[1726156980158,8.6466022,134.13,134.12,20.0]
[1726156980379,8.6466022,134.15,134.12,20.0]
[1726156980884,8.6466022,134.13,134.12,20.0]
[1726156982093,8.6466022,134.1,134.09,23.4751282]
[1726156982261,8.6466022,134.1,134.07,23.4751282]
[1726156982671,15.8842,134.14,134.07,23.4751282]
[1726156982672,8.6466022,134.08,134.07,23.4751282]
[1726156984093,8.6466022,134.08,134.07,43.4751282]
[1726156986258,7.9598145,134.18,134.07,67.2520122]
[1726156986465,1.86369268,134.17,134.11,20.0]
[1726156987888,7.95932923,134.18,134.11,20.0]
[1726156988276,7.95932897,134.18,134.11,20.0]
[1726156988967,1.86382893,134.17,134.11,20.0]
[1726156989285,6.0955,134.18,134.13,20.0]
[1726156991496,0.3338426,134.19,134.15,20.0]
[1726156992200,0.3338426,134.19,134.11,20.0]
[1726156992369,2.19745375,134.19,134.11,20.0]
[1726156993197,6.1423,134.18,134.11,20.0]
[1726156993374,1.86382102,134.17,134.11,20.0]
[1726156994097,15.1471,134.16,134.11,20.0]
[1726156994390,1.86382002,134.15,134.11,20.0]
[1726156994573,1.86382002,134.15,134.08,23.4751282]
[1726156995885,1.86382002,134.15,134.09,20.0]
[1726156996513,1.86382002,134.15,134.07,20.0]
[1726156996872,6.4055,134.14,134.07,20.0]
[1726156997076,1.86422317,134.13,134.07,20.0]
[1726156997387,1.86422317,134.13,134.04,23.4751282]
[1726156997572,15.5682,134.11,134.04,23.4751282]
[1726156997775,1.86476584,134.1,134.03,16.0879]
[1726156998202,15.5682,134.11,134.04,23.4751282]
[1726156998683,15.5682,134.11,134.05,20.0]
[1726156999385,22.673,134.14,134.07,20.0]
[1726157000497,1.86423955,134.13,134.07,20.0]
[1726157000871,1.86423955,134.13,134.05,20.0]
[1726157001410,24.33423955,134.13,134.05,20.0]
[1726157001577,1.86423955,134.13,134.05,20.0]
[1726157003688,1.86461809,134.12,134.07,20.0]
[1726157003897,22.673,134.14,134.09,20.0]
[1726157004287,22.673,134.14,134.1,23.4751282]
[1726157004495,22.673,134.14,134.11,20.0]
[1726157005880,22.673,134.14,134.09,20.0]
[1726157006880,22.673,134.14,134.11,20.0]
[1726157009103,22.673,134.14,134.08,23.4751282]
[1726157009420,1.86399523,134.13,134.09,20.0]
[1726157009791,22.673,134.14,134.06,20.0]
[1726157009997,22.673,134.14,134.08,20.0]
[1726157010799,1.86413098,134.13,134.08,20.0]
[1726157011200,22.673,134.14,134.08,20.0]
[1726157013636,1.8639948,134.13,134.08,20.0]
[1726157014118,1.8639948,134.13,134.05,23.4751282]
[1726157014328,1.9450564,134.13,134.05,24.4651282]
[1726157014701,1.9450564,134.13,134.05,23.4751282]
[1726157015398,1.9450564,134.13,134.06,20.0]
[1726157015801,1.9450564,134.13,134.05,20.0]
[1726157016007,1.86461815,134.12,134.05,20.0]
[1726157016297,8.23510182,134.11,134.05,20.0]
[1726157016598,6.3704,134.11,134.06,23.4751282]
[1726157016802,6.3704,134.11,134.07,20.0]
[1726157020722,6.3704,134.11,134.09,20.0]
[1726157022926,0.0810616,134.13,134.1,23.4751282]
[1726157023227,0.0810616,134.13,134.11,20.0]
[1726157025933,0.0810616,134.13,134.11,20.0]
[1726157029540,0.0810616,134.13,134.09,20.0]
[1726157037349,1.94531915,134.13,134.07,20.0]
[1726157037538,15.1867,134.12,134.07,20.0]
[1726157037848,1.86444187,134.11,134.07,20.0]
[1726157040829,15.1867,134.12,134.07,20.0]
[1726157041538,17.0512915,134.12,134.07,20.0]
[1726157041718,15.1867,134.12,134.07,20.0]
[1726157042036,7.94879112,134.11,134.04,23.4751282]
[1726157042237,1.86470571,134.1,134.06,14.98493323]
[1726157043043,6.0842,134.11,134.07,20.0]
[1726157044622,6.0842,134.11,134.08,14.98493323]
[1726157044827,6.0842,134.11,134.1,14.98493323]
[1726157045428,7.94847055,134.11,134.08,14.98493323]
[1726157045635,7.94847055,134.11,134.09,20.0]
[1726157046247,7.94847055,134.11,134.05,23.40774796]
[1726157046551,1.86447928,134.1,134.06,20.0]
[1726157049045,6.0842,134.11,134.06,20.0]
[1726157049729,0.0810616,134.13,134.09,23.40774796]
[1726157050040,0.0810616,134.13,134.1,20.0]
[1726157051638,0.0810616,134.13,134.12,20.0]
[1726157052234,16.1175,134.18,134.12,20.0]
[1726157052445,16.1175,134.18,134.15,20.0]
[1726157053064,16.1175,134.18,134.09,20.0]
[1726157053270,16.1175,134.18,134.12,20.0]
[1726157053479,2.11498592,134.17,134.12,20.0]
[1726157053781,6.4265,134.16,134.1,20.0]
[1726157053949,1.86405703,134.15,134.1,20.0]
[1726157054150,1.86405341,134.14,134.1,20.0]
[1726157054363,6.4265,134.16,134.1,20.0]
[1726157054565,8.29056342,134.16,134.1,20.0]
[1726157058849,6.4265,134.16,134.1,20.0]
[1726157059480,1.86397748,134.15,134.1,20.0]
[1726157059661,6.4265,134.16,134.1,20.0]
[1726157059867,1.86397749,134.15,134.1,20.0]
[1726157060061,1.86397762,134.14,134.1,20.0]
[1726157061158,1.86416827,134.13,134.1,20.0]
[1726157061368,1.86416405,134.15,134.1,20.0]
[1726157061560,1.86416638,134.14,134.1,20.0]
[1726157062467,15.7852,134.13,134.07,23.40774796]
[1726157062675,1.86442719,134.12,134.07,23.40774796]
[1726157063353,15.7852,134.13,134.07,23.40774796]
[1726157063565,1.86434503,134.12,134.07,23.40774796]
[1726157063965,15.7852,134.13,134.07,23.40774796]
[1726157066084,1.86446769,134.12,134.07,23.40774796]
[1726157066757,15.7852,134.13,134.07,23.40774796]
[1726157068080,15.7852,134.13,134.1,14.97481305]
[1726157071296,1.86426329,134.12,134.1,14.97481305]
[1726157071500,15.7852,134.13,134.1,14.97481305]
[1726157072700,6.4265,134.16,134.1,14.97481305]
[1726157073003,1.86410575,134.15,134.1,14.97481305]
[1726157073175,6.4265,134.16,134.1,14.97481305]
[1726157073507,8.29060586,134.16,134.1,14.97481305]
[1726157074299,6.4265,134.16,134.1,14.97481305]
[1726157075106,1.86410204,134.15,134.1,14.97481305]
[1726157075277,1.86410204,134.15,134.05,19.0564776]
[1726157075278,6.4265,134.16,134.12,14.97481305]
[1726157083519,23.776884,134.13,134.04,7.76376884]
[1726157083680,23.776884,134.11,134.05,0.94]
[1726157083880,1.86494981,134.1,134.04,14.97481305]
[1726157085309,1.86494287,134.09,134.04,14.97481305]
[1726157085488,1.86467944,134.12,134.04,14.97481305]
[1726157086903,1.86467944,134.12,134.06,14.97481305]
[1726157089206,1.86452476,134.13,134.08,14.97481305]
[1726157089409,22.1978,134.14,134.1,14.97481305]
[1726157089708,1.86426402,134.13,134.1,14.97481305]
[1726157089917,22.1978,134.14,134.1,14.97481305]
[1726157090421,1.86417992,134.13,134.1,14.97481305]
[1726157090727,22.1978,134.14,134.12,14.97481305]
[1726157091026,6.1245,134.14,134.12,14.97481305]
[1726157092190,6.1245,134.14,134.1,23.39305929]
[1726157092411,6.1245,134.14,134.11,20.0]
[1726157092717,17.30641524,134.17,134.11,20.0]
[1726157092892,15.4424507,134.17,134.11,20.0]
[1726157093094,17.3064188,134.17,134.11,20.0]
[1726157094511,17.3064188,134.17,134.12,23.39305929]
[1726157095018,15.4424507,134.17,134.12,23.39305929]
[1726157095511,17.30618588,134.17,134.12,23.39305929]
[1726157095907,1.86373514,134.16,134.12,23.39305929]
[1726157096296,15.4424507,134.17,134.13,20.0]
[1726157096499,1.86373517,134.16,134.13,20.0]
[1726157097231,1.86373517,134.15,134.1,20.0]
[1726157097391,1.86418145,134.14,134.1,20.0]
[1726157098497,1.8640575,134.16,134.1,20.0]
[1726157099199,25.89187704,134.15,134.1,20.0]
[1726157099399,1.86427725,134.14,134.1,20.0]
[1726157100404,1.86419878,134.16,134.1,20.0]
[1726157102326,1.86419878,134.16,134.07,15.4855]
[1726157102327,6.0847,134.14,134.07,23.39305929]
[1726157102508,6.0847,134.14,134.05,3.03392408]
[1726157102509,15.0369,134.12,134.05,23.39305929]
[1726157102713,1.86460039,134.11,134.05,23.39305929]
[1726157103030,16.90149865,134.12,134.05,23.39305929]
[1726157103208,1.86459865,134.1,134.05,23.39305929]
[1726157104099,1.86458309,134.11,134.05,23.39305929]
[1726157104305,1.86452974,134.11,134.05,23.39305929]
[1726157105211,16.90138658,134.12,134.07,23.39305929]
[1726157105709,16.90138658,134.12,134.08,20.0]
[1726157105914,6.0847,134.14,134.1,20.0]
[1726157106113,0.2510507,134.17,134.13,23.39305929]
[1726157106414,2.11474575,134.17,134.14,20.0]
[1726157106614,0.2510507,134.17,134.14,20.0]
[1726157107000,2.11468812,134.17,134.14,20.0]
[1726157108424,2.11468812,134.17,134.12,20.0]
[1726157108938,24.027864,134.16,134.07,23.39305929]
[1726157109229,30.144484,134.14,134.07,23.39305929]
[1726157109911,32.00887033,134.14,134.07,23.39305929]
[1726157110302,8.23198633,134.14,134.08,20.0]
[1726157111522,8.23198633,134.14,134.1,20.0]
[1726157111720,6.3676,134.14,134.1,20.0]
[1726157112030,1.86416501,134.13,134.1,20.0]
[1726157114612,6.3676,134.14,134.1,20.0]
[1726157115317,6.3676,134.14,134.11,23.39305929]
[1726157115621,1.86385976,134.13,134.12,20.0]
[1726157115820,8.2316739,134.14,134.12,20.0]
[1726157116336,8.2316739,134.14,134.09,23.39305929]
[1726157116540,8.2316739,134.14,134.1,20.0]
[1726157118135,8.2316739,134.14,134.08,20.0]
[1726157119523,23.776884,134.13,134.06,20.0]
[1726157119722,1.86460143,134.12,134.06,20.0]
[1726157119922,6.0637,134.09,134.03,0.2510507]
[1726157120258,1.8649114,134.08,134.03,0.2510507]
[1726157120743,1.86489371,134.07,134.03,0.2510507]
[1726157121339,6.3144,134.04,134.03,0.2510507]
[1726157121542,31.95694266,134.04,134.03,0.2510507]
[1726157121843,32.20792266,134.04,134.03,0.2510507]
[1726157122052,32.08243266,134.04,134.03,0.2510507]
[1726157122343,8.18009858,134.04,134.03,0.2510507]
[1726157124540,32.08247258,134.04,134.03,0.2510507]
[1726157124750,32.20796258,134.04,134.03,0.2510507]
[1726157125256,23.776884,134.03,133.99,0.2510507]
[1726157125445,23.776884,134.01,133.99,0.2510507]
[1726157125749,1.86616854,134.0,133.99,0.2510507]
[1726157126848,23.776884,134.01,133.99,0.2510507]
[1726157127035,25.64308357,134.0,133.99,0.2510507]
[1726157128066,23.776884,134.0,133.99,0.2510507]
[1726157129327,24.027864,134.0,133.99,0.2510507]
[1726157130537,23.776884,134.0,133.99,0.2510507]
[1726157132223,40.078164,134.0,133.99,0.2510507]
[1726157132632,39.827184,134.0,133.99,0.2510507]
[1726157135841,40.078164,134.0,133.99,0.2510507]
[1726157136859,39.827184,134.0,133.99,0.2510507]
[1726157137338,40.078164,134.0,133.99,0.2510507]
[1726157138149,41.94466689,134.0,133.99,0.2510507]
[1726157140264,48.08656689,134.0,133.99,0.2510507]
[1726157140751,70.55656689,134.0,133.99,0.2510507]
[1726157144267,68.690064,134.0,133.99,0.2510507]
[1726157145059,70.55670012,134.0,133.99,0.2510507]
[1726157149469,24.05876512,134.0,133.99,0.2510507]
[1726157149671,22.1922,134.0,133.99,0.2510507]
[1726157150775,46.220064,134.0,133.99,0.2510507]
[1726157151644,48.08650428,134.0,133.99,0.2510507]
[1726157154069,70.55650428,134.0,133.99,0.2510507]
[1726157155249,48.08650428,134.0,133.99,0.2510507]
[1726157156049,46.220064,134.0,133.99,0.2510507]
[1726157156471,48.08652839,134.0,133.99,0.2510507]
[1726157156670,46.220064,134.0,133.99,0.2510507]
[1726157158658,68.690064,134.0,133.99,0.2510507]
[1726157159167,77.27312482,134.0,133.99,0.2510507]
[1726157160452,85.08837738,134.0,133.99,0.2510507]
[1726157160648,68.690064,134.0,133.99,0.2510507]
[1726157161359,75.406464,134.0,133.99,0.2510507]
[1726157161565,68.690064,134.0,133.99,0.2510507]
[1726157162274,46.220064,134.0,133.99,0.2510507]
[1726157162749,48.08669892,134.0,133.99,0.2510507]
[1726157162944,8.00851669,134.0,133.99,0.2510507]
[1726157163551,1.86661669,134.0,133.99,0.2510507]
[1726157163946,22.6706,134.03,133.99,0.2510507]
[1726157164575,1.86618171,134.02,133.99,0.2510507]
[1726157164877,1.86618408,134.01,133.99,0.2510507]
[1726157165169,23.776884,134.0,133.99,0.2510507]
[1726157165468,46.497864,134.0,133.99,0.2510507]
[1726157165670,53.214264,134.0,133.99,0.2510507]
[1726157165854,59.248664,134.0,133.99,0.2510507]
[1726157166245,74.714764,134.0,133.99,0.2510507]
[1726157169373,21.5005,134.0,133.99,0.2510507]
[1726157169676,10.0,134.08,133.99,0.2510507]
[1726157169677,22.0335,134.04,133.99,0.2510507]
[1726157170175,1.86618497,134.03,133.99,0.2510507]
[1726157172094,50.0,134.08,133.99,0.2510507]
[1726157172095,21.7111,134.07,133.99,20.2510507]
[1726157172259,6.4181,134.07,134.0,23.45625817]
[1726157172459,6.4181,134.1,134.02,23.45625817]
[1726157172657,1.86528369,134.09,134.02,23.45625817]
[1726157172879,0.2510507,134.13,134.04,23.45625817]
[1726157173383,8.8261247,134.13,134.04,23.45625817]
[1726157173582,22.47,134.12,134.04,23.45625817]
[1726157174089,1.86512413,134.11,134.05,20.0]
[1726157174269,0.2510507,134.13,134.06,23.45625817]
[1726157174465,2.11581344,134.13,134.06,23.45625817]
[1726157175867,24.0279347,134.13,134.06,23.45625817]
[1726157176079,23.776884,134.11,134.06,23.45625817]
[1726157176400,0.12549,134.1,134.06,23.45625817]
[1726157176586,1.99035322,134.1,134.04,23.45625817]
[1726157176983,1.99035322,134.1,134.05,20.0]
[1726157177285,0.12549,134.1,134.05,20.0]
[1726157178006,0.12549,134.1,134.06,23.45625817]
[1726157178574,1.99024556,134.1,134.06,23.45625817]
[1726157179577,0.12549,134.1,134.06,23.45625817]
[1726157179777,1.99025969,134.1,134.06,23.45625817]
[1726157179978,0.12549,134.1,134.06,23.45625817]
[1726157180595,2.11581842,134.13,134.08,23.45625817]
[1726157180890,1.86440964,134.12,134.08,23.45625817]
[1726157181499,0.2510507,134.13,134.08,23.45625817]
[1726157182908,0.2510507,134.13,134.07,20.0]
[1726157182909,0.12549,134.12,134.07,20.0]
[1726157183385,2.1156499,134.12,134.07,20.0]
[1726157183586,0.25098,134.12,134.07,20.0]
[1726157183783,2.11564856,134.12,134.07,20.0]
[1726157185386,0.25098,134.12,134.07,20.0]
[1726157185586,0.2510507,134.13,134.08,23.45625817]
[1726157185999,2.1154872,134.13,134.08,23.45625817]
[1726157186403,0.2510507,134.13,134.08,23.45625817]
[1726157187186,0.2510507,134.13,134.09,20.0]
[1726157191821,0.12549,134.12,134.09,20.0]
[1726157192901,0.2510507,134.13,134.09,20.0]